fUST/lending_fUST_20250708
["ID","MTS","AMOUNT","RATE_DAILY","PERIOD"]
[370232667,1751919050072,-500.0,0.00022473,2]
[370232669,1751919050083,-500.0,0.00022473,2]
[370232671,1751919050092,-500.0,0.00022473,2]
[370232673,1751919050102,-500.0,0.00022473,2]
[370232675,1751919050111,-500.0,0.00022473,2]
[370232676,1751919050121,-300.0,0.00022473,2]
[370232677,1751919050131,-807.8672641,0.0002248,2]
[370232678,1751919050140,-178255.81691983,0.0002249,7]
[370232679,1751919050154,-19589.43344096,0.0002249,7]
[370232692,1751919050268,-460.0,0.00019178,2]
[370232695,1751919050279,-460.0,0.00019452,2]
[370232696,1751919050288,-460.0,0.00019452,2]
[370232699,1751919050297,-460.0,0.00019726,2]
[370232701,1751919050307,-460.0,0.0002,2]
[370232703,1751919050316,-599.12,0.00020273,2]
[370232705,1751919050326,-151.0,0.00021421,2]
[370232707,1751919050335,-151.0,0.000224,7]
[370232709,1751919050344,-806.64502474,0.0002249,7]
[370232711,1751919050356,-56527.08753343,0.0002249,7]
[370232713,1751919050366,-13095.2503322,0.0002249,7]
[370232715,1751919050378,-514.01076872,0.0002249,7]
[370232729,1751919050496,-20798.65750117,0.0002249,7]
[370234227,1751919206989,274.8,0.00025169,120]
[370234228,1751919547965,10000.0,0.00027397,120]
[370234229,1751919584752,151.0,0.00027397,120]
[370234230,1751919701480,151.0,0.00027397,120]
[370234236,1751919995121,-153.28195568,0.00018064,2]
[370234237,1751920001777,151.0,0.00027397,120]
[370234239,1751920074604,1304.69841065,0.00018,2]
[370234240,1751920086749,200520.50734176,0.00025188,60]
[370234242,1751920119907,648.11651633,0.00017,2]
[370234243,1751920123040,489811.0629156,0.00025188,60]
[370234329,1751920232736,-340.93062313,0.00018063,2]
[370234331,1751920232746,-203.31038796,0.00018063,2]
[370234333,1751920232756,-154.54352121,0.00018064,2]
[370234335,1751920232766,-1200.0,0.00018162,2]
[370234337,1751920232775,-300.0,0.00018163,2]
[370234339,1751920232785,-300.0,0.00018163,2]
[370234341,1751920232794,-300.0,0.00018163,2]
[370234343,1751920232803,-300.0,0.00018163,2]
[370234345,1751920232815,-8015.3844944,0.00018164,2]
[370234347,1751920232824,-204.05692,0.00018323,2]
[370234349,1751920232833,-193.26713148,0.00018603,2]
[370234351,1751920232842,-203.31038796,0.00018969,2]
[370234353,1751920232852,-1200.0,0.00019063,2]
[370234355,1751920232861,-500.0,0.00019069,2]
[370234357,1751920232870,-500.0,0.00019069,2]
[370234359,1751920232879,-500.0,0.00019069,2]
[370234361,1751920232888,-500.0,0.00019069,2]
[370234363,1751920232897,-500.0,0.00019069,2]
[370234365,1751920232907,-500.0,0.00019069,2]
[370234367,1751920232916,-500.0,0.00019069,2]
[370234369,1751920232925,-363.44913302,0.00019069,2]
[370234371,1751920232934,-1939.60157374,0.00019078,2]
[370234373,1751920232943,-490.71766052,0.00019078,2]
[370234375,1751920232953,-866.12666327,0.00019078,2]
[370234377,1751920232962,-191.53460498,0.00019166,2]
[370234379,1751920232971,-743.39,0.00019168,3]
[370234381,1751920232980,-371.69,0.00019168,3]
[370234383,1751920232989,-185.85,0.00019168,3]
[370234384,1751920233000,-557.55,0.00019168,3]
[370234387,1751920233010,-219.77,0.00019168,3]
[370234389,1751920233019,-855.62,0.00019168,3]
[370234391,1751920233029,-163.55,0.00019168,3]
[370234393,1751920233038,-502.65178596,0.00019173,2]
[370234394,1751920233047,-160.0,0.00019173,2]
[370234396,1751920233056,-351.19061095,0.00019176,13]
[370234398,1751920233066,-460.0,0.00019178,2]
[370234400,1751920233075,-460.0,0.00019178,2]
[370234403,1751920233085,-460.0,0.00019178,2]
[370234405,1751920233094,-460.0,0.00019178,2]
[370234407,1751920233103,-401.61168504,0.00019178,2]
[370234409,1751920233112,-460.0,0.00019178,2]
[370234411,1751920233122,-460.0,0.00019178,2]
[370234413,1751920233131,-1000.0,0.00019178,2]
[370234415,1751920233140,-460.0,0.00019178,2]
[370234417,1751920233149,-460.0,0.00019178,2]
[370234419,1751920233159,-460.0,0.00019178,2]
[370234421,1751920233168,-460.0,0.00019178,2]
[370234423,1751920233177,-460.0,0.00019178,2]
[370234425,1751920233186,-460.0,0.00019178,2]
[370234427,1751920233196,-460.0,0.00019178,2]
[370234429,1751920233204,-460.0,0.00019178,2]
[370234430,1751920233215,-460.6014622,0.00019178,2]
[370234432,1751920233227,-460.0,0.00019178,2]
[370234435,1751920233237,-248.37772634,0.00019178,2]
[370234436,1751920233247,-460.0,0.00019178,2]
[370234437,1751920233256,-460.0,0.00019178,2]
[370234438,1751920233266,-460.0,0.00019178,2]
[370234439,1751920233276,-539.06517588,0.00019178,2]
[370234440,1751920233286,-461.47397758,0.00019178,2]
[370234441,1751920233296,-460.0,0.00019178,2]
[370234442,1751920233305,-460.0,0.00019178,2]
[370234443,1751920233316,-460.0,0.00019178,2]
[370234444,1751920233325,-460.0,0.00019178,2]
[370234445,1751920233335,-460.0,0.00019178,2]
[370234446,1751920233344,-460.0,0.00019178,2]
[370234447,1751920233354,-404.03221744,0.00019178,2]
[370234448,1751920233363,-500.0,0.00019178,2]
[370234449,1751920233372,-438.40969327,0.00019178,2]
[370234450,1751920233381,-500.0,0.00019178,2]
[370234451,1751920233390,-500.0,0.00019178,2]
[370234452,1751920233399,-460.0,0.00019178,2]
[370234453,1751920233408,-472.4462322,0.00019178,2]
[370234454,1751920233417,-460.0,0.00019178,2]
[370234455,1751920233426,-460.0,0.00019178,2]
[370234456,1751920233435,-461.35070995,0.00019178,2]
[370234458,1751920233445,-460.0,0.00019178,2]
[370234459,1751920233454,-460.0,0.00019178,2]
[370234461,1751920233464,-460.0,0.00019178,2]
[370234462,1751920233475,-460.0,0.00019178,2]
[370234463,1751920233484,-243.65447147,0.00019178,2]
[370234464,1751920233494,-460.0,0.00019178,2]
[370234465,1751920233504,-460.0,0.00019178,2]
[370234466,1751920233513,-460.0,0.00019178,2]
[370234467,1751920233523,-461.19277408,0.00019178,2]
[370234468,1751920233533,-461.10404564,0.00019178,2]
[370234469,1751920233543,-460.0,0.00019178,2]
[370234470,1751920233552,-460.0,0.00019178,2]
[370234471,1751920233562,-460.0,0.00019178,2]
[370234472,1751920233572,-596.86082652,0.00019178,2]
[370234473,1751920233581,-460.0,0.00019178,2]
[370234474,1751920233591,-406.46772893,0.00019178,2]
[370234475,1751920233600,-460.0,0.00019178,2]
[370234476,1751920233610,-460.0,0.00019178,2]
[370234477,1751920233619,-460.0,0.00019178,2]
[370234478,1751920233629,-460.0,0.00019178,2]
[370234479,1751920233638,-460.0,0.00019178,2]
[370234480,1751920233648,-460.0,0.00019178,2]
[370234481,1751920233657,-460.0,0.00019178,2]
[370234482,1751920233667,-460.0,0.00019178,2]
[370234483,1751920233677,-460.0,0.00019178,2]
[370234484,1751920233687,-314.45757507,0.00019178,2]
[370234485,1751920233697,-460.0,0.00019178,2]
[370234486,1751920233706,-264.94209354,0.00019178,2]
[370234487,1751920233727,-460.0,0.00019178,2]
[370234488,1751920233738,-460.0,0.00019178,2]
[370234489,1751920233747,-460.0,0.00019178,2]
[370234490,1751920233757,-460.0,0.00019178,2]
[370234491,1751920233767,-460.0,0.00019178,2]
[370234492,1751920233776,-460.0,0.00019178,2]
[370234493,1751920233787,-460.0,0.00019178,2]
[370234494,1751920233796,-460.0,0.00019178,2]
[370234495,1751920233806,-460.0,0.00019178,2]
[370234496,1751920233815,-459.06722213,0.00019178,2]
[370234497,1751920234011,-0.93277787,0.00019178,2]
[370234498,1751920234021,-460.0,0.00019178,2]
[370234499,1751920234031,-460.0,0.00019178,2]
[370234500,1751920234041,-460.0,0.00019178,2]
[370234501,1751920234050,-460.0,0.00019178,2]
[370234502,1751920234060,-460.0,0.00019178,2]
[370234503,1751920234070,-460.0,0.00019178,2]
[370234504,1751920234079,-460.0,0.00019178,2]
[370234505,1751920234089,-460.0,0.00019178,2]
[370234506,1751920234098,-460.0,0.00019178,2]
[370234507,1751920234108,-460.0,0.00019178,2]
[370234508,1751920234117,-460.0,0.00019178,2]
[370234509,1751920234127,-475.72981807,0.00019178,2]
[370234510,1751920234136,-460.0,0.00019178,2]
[370234511,1751920234145,-460.0,0.00019178,2]
[370234512,1751920234155,-558.71627524,0.00019178,2]
[370234513,1751920234164,-426.45050888,0.00019178,2]
[370234514,1751920234173,-460.0,0.00019178,2]
[370234515,1751920234183,-460.0,0.00019178,2]
[370234516,1751920234192,-460.0,0.00019178,2]
[370234517,1751920234202,-460.0,0.00019178,2]
[370234518,1751920234211,-460.0,0.00019178,2]
[370234519,1751920234225,-460.0,0.00019178,2]
[370234520,1751920234234,-460.0,0.00019178,2]
[370234521,1751920234243,-460.0,0.00019178,2]
[370234522,1751920234253,-460.0,0.00019178,2]
[370234523,1751920234263,-460.0,0.00019178,2]
[370234524,1751920234273,-460.0,0.00019178,2]
[370234525,1751920234282,-460.0,0.00019178,2]
[370234526,1751920234296,-460.0,0.00019178,2]
[370234527,1751920234308,-460.0,0.00019178,2]
[370234528,1751920234317,-155.80727379,0.00019178,2]
[370234529,1751920234329,-460.0,0.00019178,2]
[370234530,1751920234339,-598.14797816,0.00019178,2]
[370234531,1751920234349,-322.29392878,0.00019178,2]
[370234532,1751920234362,-460.0,0.00019178,2]
[370234533,1751920234372,-460.0,0.00019178,2]
[370234534,1751920234383,-460.0,0.00019178,2]
[370234535,1751920234393,-460.0,0.00019178,2]
[370234536,1751920234402,-460.0,0.00019178,2]
[370234537,1751920234413,-460.0,0.00019178,2]
[370234538,1751920234423,-460.0,0.00019178,2]
[370234539,1751920234434,-460.0,0.00019178,2]
[370234540,1751920234444,-460.0,0.00019178,2]
[370234541,1751920234456,-460.0,0.00019178,2]
[370234542,1751920234467,-460.0,0.00019178,2]
[370234543,1751920234477,-460.0,0.00019178,2]
[370234544,1751920234487,-460.0,0.00019178,2]
[370234545,1751920234497,-460.0,0.00019178,2]
[370234546,1751920234506,-461.81349792,0.00019178,2]
[370234547,1751920234516,-460.0,0.00019178,2]
[370234548,1751920234525,-460.0,0.00019178,2]
[370234549,1751920234535,-460.0,0.00019178,2]
[370234550,1751920234545,-460.0,0.00019178,2]
[370234551,1751920234555,-460.0,0.00019178,2]
[370234552,1751920234565,-337.3615387,0.00019178,2]
[370234553,1751920234575,-460.0,0.00019178,2]
[370234554,1751920234584,-460.0,0.00019178,2]
[370234555,1751920234594,-460.0,0.00019178,2]
[370234556,1751920234604,-460.0,0.00019178,2]
[370234557,1751920234613,-460.0,0.00019178,2]
[370234558,1751920234623,-375.34245394,0.00019178,2]
[370234559,1751920234632,-460.0,0.00019178,2]
[370234560,1751920234642,-399.44820426,0.00019178,2]
[370234561,1751920234651,-605.31305853,0.00019178,2]
[370234562,1751920234660,-462.11077613,0.00019178,2]
[370234563,1751920234670,-460.0,0.00019178,2]
[370234564,1751920234679,-460.0,0.00019178,2]
[370234565,1751920234689,-461.61936246,0.00019178,2]
[370234566,1751920234848,-462.04139139,0.00019178,2]
[370234567,1751920234860,-460.85241367,0.00019178,2]
[370234568,1751920234869,-460.0,0.00019178,2]
[370234569,1751920234879,-461.2505786,0.00019178,2]
[370234570,1751920234888,-460.0,0.00019178,2]
[370234571,1751920234897,-460.0,0.00019178,2]
[370234572,1751920234906,-460.0,0.00019178,2]
[370234573,1751920234916,-460.0,0.00019178,2]
[370234574,1751920234925,-460.0,0.00019178,2]
[370234575,1751920234935,-460.0,0.00019178,2]
[370234576,1751920234944,-460.0,0.00019178,2]
[370234577,1751920234953,-460.0,0.00019178,2]
[370234578,1751920234963,-462.8134957,0.00019178,2]
[370234579,1751920234972,-285.89865888,0.00019178,2]
[370234580,1751920234982,-460.0,0.00019178,2]
[370234581,1751920234991,-92.27684447,0.00019178,2]
[370234582,1751920235005,-368.59980988,0.00019178,2]
[370234583,1751920235014,-177.90581825,0.00019178,2]
[370234584,1751920235025,-283.6509958,0.00019178,2]
[370234585,1751920235035,-460.0,0.00019178,2]
[370234586,1751920235044,-460.81766967,0.00019178,2]
[370234587,1751920235053,-460.0,0.00019178,2]
[370234588,1751920235062,-460.0,0.00019178,2]
[370234589,1751920235072,-460.0,0.00019178,2]
[370234590,1751920235081,-462.83565828,0.00019178,2]
[370234591,1751920235090,-460.0,0.00019178,2]
[370234592,1751920235099,-335.53481162,0.00019178,2]
[370234628,1751920238599,-6100.68417407,0.00018603,2]
[370234630,1751920238611,-43899.31582593,0.00018603,2]
[370234632,1751920238620,-177.37089849,0.00018969,2]
[370234635,1751920238630,-500.0,0.00019167,2]
[370234636,1751920238640,-500.0,0.00019167,2]
[370234638,1751920238650,-381.28244808,0.00019167,2]
[370234640,1751920238659,-500.0,0.00019167,2]
[370234642,1751920238669,-500.0,0.00019167,2]
[370234645,1751920238679,-500.0,0.00019167,2]
[370234646,1751920238688,-174.751048,0.00019167,2]
[370234649,1751920238698,-500.0,0.00019167,2]
[370234650,1751920238707,-500.0,0.00019167,2]
[370234652,1751920238717,-500.0,0.00019167,2]
[370234654,1751920238726,-500.0,0.00019167,2]
[370234656,1751920238736,-176.22129471,0.00019167,2]
[370234658,1751920238745,-500.0,0.00019167,2]
[370234660,1751920238755,-213.1240608,0.00019167,2]
[370234662,1751920238764,-500.0,0.00019167,2]
[370234664,1751920238773,-462.68249383,0.00019167,2]
[370234667,1751920238782,-500.0,0.00019167,2]
[370234669,1751920238791,-500.0,0.00019167,2]
[370234671,1751920238801,-500.0,0.00019167,2]
[370234673,1751920238809,-500.0,0.00019167,2]
[370234675,1751920238819,-500.0,0.00019167,2]
[370234676,1751920238827,-500.0,0.00019167,2]
[370234678,1751920238837,-500.0,0.00019167,2]
[370234680,1751920238846,-500.0,0.00019167,2]
[370234682,1751920238855,-500.0,0.00019167,2]
[370234684,1751920238864,-500.0,0.00019167,2]
[370234686,1751920238873,-453.91872722,0.00019167,2]
[370234688,1751920238882,-500.0,0.00019167,2]
[370234690,1751920238891,-639.92824908,0.00019167,2]
[370234692,1751920238900,-500.0,0.00019167,2]
[370234694,1751920238910,-500.0,0.00019167,2]
[370234696,1751920238919,-629.38359738,0.00019167,2]
[370234698,1751920238929,-500.0,0.00019167,2]
[370234700,1751920238939,-500.0,0.00019167,2]
[370234702,1751920238948,-500.0,0.00019167,2]
[370234704,1751920238957,-500.0,0.00019167,2]
[370234706,1751920238966,-500.0,0.00019167,2]
[370234708,1751920238975,-500.0,0.00019167,2]
[370234710,1751920238984,-500.0,0.00019167,2]
[370234712,1751920238993,-500.0,0.00019167,2]
[370234730,1751920239143,-500.0,0.00019167,2]
[370234732,1751920239152,-500.0,0.00019167,2]
[370234734,1751920239162,-124.46518838,0.00019178,2]
[370234736,1751920239172,-460.0,0.00019178,2]
[370234738,1751920239181,-460.0,0.00019178,2]
[370234740,1751920239190,-461.34945791,0.00019178,2]
[370234742,1751920239199,-461.14247989,0.00019178,2]
[370234744,1751920239209,-460.0,0.00019178,2]
[370234746,1751920239222,-502.22502918,0.00019178,2]
[370234748,1751920239231,-464.35440876,0.00019178,2]
[370234750,1751920239240,-460.0,0.00019178,2]
[370234752,1751920239249,-460.0,0.00019178,2]
[370234754,1751920239268,-461.14763954,0.00019178,2]
[370234756,1751920239277,-461.3567659,0.00019178,2]
[370234758,1751920239286,-464.47611728,0.00019178,2]
[370234760,1751920239296,-461.35780571,0.00019178,2]
[370234762,1751920239305,-460.0,0.00019178,2]
[370234764,1751920239314,-462.29762852,0.00019178,2]
[370234766,1751920239323,-460.0,0.00019178,2]
[370234768,1751920239332,-361.39053658,0.00019178,2]
[370234770,1751920239341,-460.0,0.00019178,2]
[370234772,1751920239350,-460.0,0.00019178,2]
[370234774,1751920239360,-460.0,0.00019178,2]
[370234776,1751920239369,-460.0,0.00019178,2]
[370234778,1751920239378,-461.40621323,0.00019178,2]
[370234779,1751920239387,-460.0,0.00019178,2]
[370234781,1751920239396,-461.51215388,0.00019178,2]
[370234783,1751920239406,-460.0,0.00019178,2]
[370234786,1751920239415,-464.60658829,0.00019178,2]
[370234788,1751920239424,-460.0,0.00019178,2]
[370234789,1751920239434,-460.0,0.00019178,2]
[370234792,1751920239443,-460.0,0.00019178,2]
[370234794,1751920239453,-460.0,0.00019178,2]
[370234796,1751920239462,-460.0,0.00019178,2]
[370234798,1751920239471,-460.0,0.00019178,2]
[370234800,1751920239480,-500.0,0.00019178,2]
[370234801,1751920239489,-500.0,0.00019178,2]
[370234804,1751920239499,-500.0,0.00019178,2]
[370234806,1751920239509,-465.14488632,0.00019178,2]
[370234808,1751920239518,-460.0,0.00019178,2]
[370234810,1751920239528,-460.0,0.00019178,2]
[370234812,1751920239537,-460.0,0.00019178,2]
[370234814,1751920239547,-460.0,0.00019178,2]
[370234816,1751920239556,-460.0,0.00019178,2]
[370234818,1751920239566,-460.0,0.00019178,2]
[370234819,1751920239575,-460.0,0.00019178,2]
[370234822,1751920239584,-460.0,0.00019178,2]
[370234824,1751920239594,-460.0,0.00019178,2]
[370234826,1751920239603,-460.0,0.00019178,2]
[370234827,1751920239613,-460.0,0.00019178,2]
[370234830,1751920239622,-460.0,0.00019178,2]
[370234831,1751920239631,-460.0,0.00019178,2]
[370234834,1751920239642,-460.0,0.00019178,2]
[370234836,1751920239651,-460.0,0.00019178,2]
[370234838,1751920239660,-460.0,0.00019178,2]
[370234840,1751920239669,-507.12253738,0.00019178,2]
[370234842,1751920239678,-460.0,0.00019178,2]
[370234844,1751920239687,-460.0,0.00019178,2]
[370234846,1751920239696,-460.0,0.00019178,2]
[370234848,1751920239706,-460.0,0.00019178,2]
[370234850,1751920239715,-593.80669959,0.00019178,2]
[370234852,1751920239724,-460.0,0.00019178,2]
[370234854,1751920239733,-460.0,0.00019178,2]
[370234856,1751920239743,-460.0,0.00019178,2]
[370234858,1751920239752,-460.0,0.00019178,2]
[370234860,1751920239761,-460.0,0.00019178,2]
[370234862,1751920239770,-460.0,0.00019178,2]
[370234864,1751920239780,-460.0,0.00019178,2]
[370234866,1751920239790,-460.0,0.00019178,2]
[370234867,1751920239799,-460.0,0.00019178,2]
[370234869,1751920239810,-460.0,0.00019178,2]
[370234871,1751920239819,-460.0,0.00019178,2]
[370234874,1751920239829,-460.0,0.00019178,2]
[370234876,1751920239838,-460.0,0.00019178,2]
[370234878,1751920239848,-460.0,0.00019178,2]
[370234880,1751920239857,-460.0,0.00019178,2]
[370234882,1751920239866,-789.45,0.00019178,2]
[370234884,1751920239875,-460.0,0.00019178,2]
[370234886,1751920239884,-460.0,0.00019178,2]
[370234888,1751920239894,-3639.45,0.00019178,2]
[370234890,1751920239903,-460.0,0.00019178,2]
[370234892,1751920239912,-460.0,0.00019178,2]
[370234894,1751920239922,-460.0,0.00019178,2]
[370234896,1751920239931,-460.0,0.00019178,2]
[370234898,1751920239940,-460.0,0.00019178,2]
[370234899,1751920239950,-460.0,0.00019178,2]
[370234902,1751920239959,-363.64937949,0.00019178,2]
[370234904,1751920239974,-96.35062051,0.00019178,2]
[370234906,1751920239983,-386.98024789,0.00019178,2]
[370234910,1751920240014,-75.78468502,0.00019178,2]
[370234913,1751920240024,-460.0,0.00019178,2]
[370234914,1751920240034,-460.0,0.00019178,2]
[370234917,1751920240043,-460.0,0.00019178,2]
[370234919,1751920240053,-460.0,0.00019178,2]
[370234920,1751920240062,-460.0,0.00019178,2]
[370234923,1751920240072,-460.0,0.00019178,2]
[370234924,1751920240081,-1356.31,0.00019178,2]
[370234926,1751920240090,-460.0,0.00019178,2]
[370234929,1751920240099,-460.0,0.00019178,2]
[370234931,1751920240109,-460.0,0.00019178,2]
[370234933,1751920240118,-460.0,0.00019178,2]
[370234936,1751920240128,-460.0,0.00019178,2]
[370234939,1751920240137,-805.64,0.00019178,2]
[370234941,1751920240146,-384.64923897,0.00019178,2]
[370234942,1751920240155,-460.0,0.00019178,2]
[370234945,1751920240165,-460.0,0.00019178,2]
[370234947,1751920240175,-500.0,0.00019178,2]
[370234949,1751920240184,-466.41226076,0.00019178,2]
[370234951,1751920240193,-240.49801868,0.00019178,2]
[370234953,1751920240202,-460.0,0.00019178,2]
[370234954,1751920240211,-460.0,0.00019178,2]
[370234957,1751920240224,-460.0,0.00019178,2]
[370234959,1751920240234,-460.0,0.00019178,2]
[370234961,1751920240243,-460.0,0.00019178,2]
[370234962,1751920240252,-460.0,0.00019178,2]
[370234964,1751920240261,-460.0,0.00019178,2]
[370234966,1751920240270,-640.34,0.00019178,2]
[370234968,1751920240280,-460.0,0.00019178,2]
[370234970,1751920240291,-460.4116866,0.00019178,2]
[370234972,1751920240299,-460.0,0.00019178,2]
[370234974,1751920240308,-460.0,0.00019178,2]
[370234976,1751920240318,-15.60705501,0.00019178,2]
[370234979,1751920240330,-444.39294499,0.00019178,2]
[370234981,1751920240340,-158.37189107,0.00019178,2]
[370234985,1751920240372,-301.62810893,0.00019178,2]
[370234987,1751920240382,-183.40660351,0.00019178,2]
[370234990,1751920240394,-280.38595942,0.00019178,2]
[370234992,1751920240403,-214.73645258,0.00019178,2]
[370234994,1751920240418,-245.26354742,0.00019178,2]
[370234996,1751920240427,-460.0,0.00019178,2]
[370234998,1751920240437,-460.0,0.00019178,2]
[370234999,1751920240446,-460.0,0.00019178,2]
[370235000,1751920240455,-460.0,0.00019178,2]
[370235001,1751920240464,-460.0,0.00019178,2]
[370235002,1751920240473,-1742.56,0.00019178,2]
[370235003,1751920240483,-460.0,0.00019178,2]
[370235004,1751920240491,-460.0,0.00019178,2]
[370235005,1751920240500,-3724.36,0.00019178,2]
[370235006,1751920240509,-460.0,0.00019178,2]
[370235007,1751920240518,-460.0,0.00019178,2]
[370235008,1751920240527,-460.0,0.00019178,2]
[370235009,1751920240536,-460.0,0.00019178,2]
[370235010,1751920240545,-2487.93,0.00019178,2]
[370235011,1751920240554,-460.0,0.00019178,2]
[370235012,1751920240563,-460.0,0.00019178,2]
[370235013,1751920240572,-460.0,0.00019178,2]
[370235014,1751920240582,-463.74993109,0.00019178,2]
[370235015,1751920240591,-460.0,0.00019178,2]
[370235017,1751920240600,-460.0,0.00019178,2]
[370235018,1751920240610,-402.90738492,0.00019178,2]
[370235020,1751920240618,-460.0,0.00019178,2]
[370235022,1751920240627,-460.0,0.00019178,2]
[370235024,1751920240636,-460.0,0.00019178,2]
[370235026,1751920240646,-652.56,0.00019178,2]
[370235028,1751920240655,-460.0,0.00019178,2]
[370235030,1751920240664,-460.0,0.00019178,2]
[370235032,1751920240675,-404.36027473,0.00019178,2]
[370235034,1751920240685,-460.0,0.00019178,2]
[370235036,1751920240694,-951.02,0.00019178,2]
[370235038,1751920240703,-460.0,0.00019178,2]
[370235040,1751920240713,-460.0,0.00019178,2]
[370235042,1751920240722,-460.0,0.00019178,2]
[370235044,1751920240731,-460.0,0.00019178,2]
[370235046,1751920240741,-460.0,0.00019178,2]
[370235048,1751920240750,-460.0,0.00019178,2]
[370235050,1751920240760,-460.70426391,0.00019178,2]
[370235052,1751920240770,-167.82371202,0.00019178,2]
[370235054,1751920240779,-460.0,0.00019178,2]
[370235056,1751920240789,-1218.96,0.00019178,2]
[370235058,1751920240798,-460.0,0.00019178,2]
[370235060,1751920240807,-265.96937405,0.00019178,2]
[370235086,1751920241040,-194.03062595,0.00019178,2]
[370235088,1751920241049,-1437.91,0.00019178,2]
[370235090,1751920241059,-460.0,0.00019178,2]
[370235092,1751920241069,-460.0,0.00019178,2]
[370235094,1751920241078,-460.0,0.00019178,2]
[370235096,1751920241087,-460.0,0.00019178,2]
[370235098,1751920241096,-460.0,0.00019178,2]
[370235100,1751920241105,-460.0,0.00019178,2]
[370235102,1751920241114,-75.40873592,0.00019178,2]
[370235104,1751920241125,-384.59126408,0.00019178,2]
[370235106,1751920241135,-160.07716711,0.00019178,2]
[370235109,1751920241146,-299.92283289,0.00019178,2]
[370235111,1751920241155,-460.0,0.00019178,2]
[370235112,1751920241164,-460.0,0.00019178,2]
[370235115,1751920241173,-377.67636382,0.00019178,2]
[370235117,1751920241185,-82.32363618,0.00019178,2]
[370235119,1751920241194,-460.0,0.00019178,2]
[370235121,1751920241203,-333.21706234,0.00019178,2]
[370235380,1751920243596,-126.78293766,0.00019178,2]
[370235382,1751920243606,-460.0,0.00019178,2]
[370235384,1751920243615,-417.16392876,0.00019178,2]
[370235386,1751920243626,-42.83607124,0.00019178,2]
[370235388,1751920243636,-518.48,0.00019178,2]
[370235390,1751920243646,-460.0,0.00019178,2]
[370235392,1751920243655,-123.84114048,0.00019178,2]
[370235395,1751920243666,-336.15885952,0.00019178,2]
[370235398,1751920243676,-460.0,0.00019178,2]
[370235400,1751920243687,-460.0,0.00019178,2]
[370235402,1751920243696,-460.0,0.00019178,2]
[370235404,1751920243705,-460.0,0.00019178,2]
[370235406,1751920243714,-460.0,0.00019178,2]
[370235420,1751920243841,-460.0,0.00019178,2]
[370235422,1751920243851,-460.85462576,0.00019178,2]
[370235424,1751920243860,-460.0,0.00019178,2]
[370235426,1751920243870,-1538.72,0.00019178,2]
[370235428,1751920243879,-460.0,0.00019178,2]
[370235430,1751920243889,-460.0,0.00019178,2]
[370235431,1751920243898,-460.0,0.00019178,2]
[370235433,1751920243907,-460.0,0.00019178,2]
[370235435,1751920243917,-460.0,0.00019178,2]
[370235437,1751920243926,-460.0,0.00019178,2]
[370235439,1751920243935,-460.0,0.00019178,2]
[370235441,1751920243945,-460.0,0.00019178,2]
[370235443,1751920243955,-460.0,0.00019178,2]
[370235445,1751920243965,-460.0,0.00019178,2]